[Event "Titled Tuesday Blitz August 22 Late 2023"]
[White "Jakubowski, Krzysztof"]
[Black "Hajiyev, Kanan"]
[WhiteFideId "1112848"]
[BlackFideId "13404148"]
[WhiteElo "2624"]
[BlackElo "2462"]
[Result "1-0"]
[Round "5"]
[TimeControl "180+1"]
[Date "2023.08.22"]
[WhiteClock "0:00:36"]
[BlackClock "0:00:00"]
[Board "89"]

1. e4 {[%clk 0:02:58]}  c6 {[%clk 0:03:00]} 2. Nf3 {[%clk 0:02:57]}  d5 {[%clk 0:03:01]} 3. d3 {[%clk 0:02:56]}  a6 {[%clk 0:03:01]} 4. Nbd2 {[%clk 0:02:49]}  Bg4 {[%clk 0:03:01]} 5. h3 {[%clk 0:02:47]}  Bh5 {[%clk 0:03:01]} 6. Qe2 {[%clk 0:02:43]}  e6 {[%clk 0:03:00]} 7. g4 {[%clk 0:02:42]}  Bg6 {[%clk 0:03:00]} 8. h4 {[%clk 0:02:38]}  h6 {[%clk 0:02:49]} 9. Ne5 {[%clk 0:02:29]}  Bh7 {[%clk 0:02:50]} 10. g5 {[%clk 0:02:29]}  Nd7 {[%clk 0:02:45]} 11. exd5 {[%clk 0:02:13]}  Nxe5 {[%clk 0:02:44]} 12. dxe6 {[%clk 0:02:06]}  Qd5 {[%clk 0:02:38]} 13. exf7+ {[%clk 0:02:00]}  Kxf7 {[%clk 0:02:35]} 14. Rh3 {[%clk 0:01:55]}  Re8 {[%clk 0:02:29]} 15. Ne4 {[%clk 0:01:49]}  Bxe4 {[%clk 0:02:16]} 16. dxe4 {[%clk 0:01:46]}  Qa5+ {[%clk 0:02:08]} 17. Bd2 {[%clk 0:01:43]}  Bb4 {[%clk 0:02:08]} 18. c3 {[%clk 0:01:41]}  Bd6 {[%clk 0:02:06]} 19. f4 {[%clk 0:01:36]}  Nd7 {[%clk 0:02:01]} 20. e5 {[%clk 0:01:18]}  Bb8 {[%clk 0:01:36]} 21. g6+ {[%clk 0:01:02]}  Kf8 {[%clk 0:01:19]} 22. c4 {[%clk 0:01:01]}  Qb6 {[%clk 0:01:12]} 23. O-O-O {[%clk 0:00:57]}  Ne7 {[%clk 0:01:09]} 24. Rb3 {[%clk 0:00:49]}  Qg1 {[%clk 0:00:58]} 25. Bh3 {[%clk 0:00:47]}  Qxg6 {[%clk 0:00:50]} 26. Bxd7 {[%clk 0:00:46]}  Rd8 {[%clk 0:00:50]} 27. Rxb7 {[%clk 0:00:43]}  Nf5 {[%clk 0:00:37]} 28. Ba5 {[%clk 0:00:39]}  Rxd7 {[%clk 0:00:08]} 29. Rdxd7 {[%clk 0:00:37]}  Bxe5 {[%clk 0:00:00]} 30. Rd8+ {[%clk 0:00:36]} 1-0


[Site "https://www.chess.com"]

[Event "Titled Tuesday Blitz August 22 Late 2023"]
[White "Papayan, Oleg"]
[Black "Liu, Casper"]
[WhiteFideId "4193911"]
[BlackFideId "1454153"]
[WhiteElo "2612"]
[BlackElo "2458"]
[Result "1-0"]
[Round "5"]
[TimeControl "180+1"]
[Date "2023.08.22"]
[WhiteClock "0:01:08"]
[BlackClock "0:00:26"]
[Board "90"]

1. e4 {[%clk 0:03:00]}  c5 {[%clk 0:03:00]} 2. Nf3 {[%clk 0:03:00]}  d6 {[%clk 0:03:00]} 3. c3 {[%clk 0:02:59]}  Nf6 {[%clk 0:03:00]} 4. Bd3 {[%clk 0:02:54]}  Bg4 {[%clk 0:03:00]} 5. h3 {[%clk 0:02:53]}  Bxf3 {[%clk 0:02:59]} 6. Qxf3 {[%clk 0:02:53]}  Nc6 {[%clk 0:03:00]} 7. Bc2 {[%clk 0:02:53]}  d5 {[%clk 0:02:59]} 8. d3 {[%clk 0:02:54]}  dxe4 {[%clk 0:02:59]} 9. dxe4 {[%clk 0:02:55]}  g6 {[%clk 0:02:54]} 10. O-O {[%clk 0:02:55]}  Bg7 {[%clk 0:02:55]} 11. Na3 {[%clk 0:02:54]}  O-O {[%clk 0:02:54]} 12. Nc4 {[%clk 0:02:54]}  b5 {[%clk 0:02:51]} 13. Rd1 {[%clk 0:02:53]}  Nd7 {[%clk 0:02:44]} 14. Ne3 {[%clk 0:02:54]}  e6 {[%clk 0:02:41]} 15. Ng4 {[%clk 0:02:54]}  Qe7 {[%clk 0:02:31]} 16. a4 {[%clk 0:02:47]}  b4 {[%clk 0:02:26]} 17. Bh6 {[%clk 0:02:31]}  Nde5 {[%clk 0:02:13]} 18. Qg3 {[%clk 0:02:26]}  Bxh6 {[%clk 0:01:51]} 19. Nxh6+ {[%clk 0:02:23]}  Kg7 {[%clk 0:01:52]} 20. Ng4 {[%clk 0:02:20]}  Nxg4 {[%clk 0:01:52]} 21. Qxg4 {[%clk 0:02:16]}  Qf6 {[%clk 0:01:48]} 22. Qg3 {[%clk 0:02:15]}  Rab8 {[%clk 0:01:38]} 23. f4 {[%clk 0:02:12]}  bxc3 {[%clk 0:01:37]} 24. e5 {[%clk 0:02:07]}  Qe7 {[%clk 0:01:36]} 25. bxc3 {[%clk 0:02:07]}  Rb2 {[%clk 0:01:36]} 26. Be4 {[%clk 0:02:07]}  Na5 {[%clk 0:01:31]} 27. Rab1 {[%clk 0:02:05]}  Rfb8 {[%clk 0:01:31]} 28. Rxb2 {[%clk 0:02:03]}  Rxb2 {[%clk 0:01:32]} 29. h4 {[%clk 0:02:02]}  h5 {[%clk 0:01:11]} 30. f5 {[%clk 0:01:18]}  exf5 {[%clk 0:01:08]} 31. Bxf5 {[%clk 0:01:18]}  Nc6 {[%clk 0:00:34]} 32. Rd7 {[%clk 0:01:09]}  Rb1+ {[%clk 0:00:33]} 33. Kh2 {[%clk 0:01:09]}  Qxe5 {[%clk 0:00:26]} 34. Bxb1 {[%clk 0:01:08]} 1-0


[Site "https://www.chess.com"]

[Event "Titled Tuesday Blitz August 22 Late 2023"]
[White "Kim, Sergey"]
[Black "Eggleston, Thomas A"]
[WhiteFideId "13700570"]
[BlackFideId "412139"]
[WhiteElo "2609"]
[BlackElo "2456"]
[Result "1-0"]
[Round "5"]
[TimeControl "180+1"]
[Date "2023.08.22"]
[WhiteClock "0:00:07"]
[BlackClock "0:00:00"]
[Board "91"]

1. d4 {[%clk 0:03:00]}  Nf6 {[%clk 0:02:59]} 2. c4 {[%clk 0:03:00]}  c5 {[%clk 0:02:59]} 3. d5 {[%clk 0:03:00]}  e5 {[%clk 0:02:59]} 4. Nc3 {[%clk 0:02:59]}  d6 {[%clk 0:03:00]} 5. e4 {[%clk 0:02:58]}  Be7 {[%clk 0:03:00]} 6. Nge2 {[%clk 0:02:57]}  Nbd7 {[%clk 0:03:01]} 7. g3 {[%clk 0:02:57]}  Nf8 {[%clk 0:03:00]} 8. Bg2 {[%clk 0:02:56]}  Ng6 {[%clk 0:03:00]} 9. O-O {[%clk 0:02:56]}  O-O {[%clk 0:02:59]} 10. h3 {[%clk 0:02:54]}  h6 {[%clk 0:02:58]} 11. Be3 {[%clk 0:02:53]}  Nh7 {[%clk 0:02:58]} 12. Qd2 {[%clk 0:02:52]}  f5 {[%clk 0:02:54]} 13. exf5 {[%clk 0:02:52]}  Bxf5 {[%clk 0:02:54]} 14. Ne4 {[%clk 0:02:48]}  Bxe4 {[%clk 0:02:48]} 15. Bxe4 {[%clk 0:02:47]}  Ng5 {[%clk 0:02:39]} 16. Bxg5 {[%clk 0:02:34]}  Bxg5 {[%clk 0:02:38]} 17. Qd3 {[%clk 0:02:15]}  Ne7 {[%clk 0:02:34]} 18. h4 {[%clk 0:02:13]}  Bf6 {[%clk 0:02:33]} 19. Nc3 {[%clk 0:02:11]}  Qd7 {[%clk 0:02:23]} 20. Kg2 {[%clk 0:02:10]}  Kf7 {[%clk 0:02:12]} 21. f4 {[%clk 0:02:00]}  exf4 {[%clk 0:02:11]} 22. Rxf4 {[%clk 0:01:59]}  Kg8 {[%clk 0:02:11]} 23. Raf1 {[%clk 0:01:56]}  Kh8 {[%clk 0:01:56]} 24. Nd1 {[%clk 0:01:47]}  Ng8 {[%clk 0:01:39]} 25. b3 {[%clk 0:01:40]}  Qe7 {[%clk 0:01:35]} 26. Ne3 {[%clk 0:01:36]}  Rae8 {[%clk 0:01:28]} 27. Nf5 {[%clk 0:01:22]}  Qe5 {[%clk 0:01:21]} 28. Bf3 {[%clk 0:01:14]}  g5 {[%clk 0:00:58]} 29. Rg4 {[%clk 0:00:38]}  gxh4 {[%clk 0:00:37]} 30. Nxh4 {[%clk 0:00:19]}  Bxh4 {[%clk 0:00:34]} 31. Rxh4 {[%clk 0:00:18]}  Qe3 {[%clk 0:00:23]} 32. Qxe3 {[%clk 0:00:17]}  Rxe3 {[%clk 0:00:22]} 33. Rf2 {[%clk 0:00:17]}  Kg7 {[%clk 0:00:19]} 34. Rg4+ {[%clk 0:00:15]}  Kh8 {[%clk 0:00:18]} 35. Rg6 {[%clk 0:00:14]}  Kh7 {[%clk 0:00:16]} 36. Rxd6 {[%clk 0:00:14]}  Rf7 {[%clk 0:00:16]} 37. Be4+ {[%clk 0:00:13]}  Rxe4 {[%clk 0:00:10]} 38. Rxf7+ {[%clk 0:00:12]}  Kh8 {[%clk 0:00:11]} 39. Rf2 {[%clk 0:00:12]}  Re7 {[%clk 0:00:09]} 40. Re6 {[%clk 0:00:11]}  Rd7 {[%clk 0:00:08]} 41. d6 {[%clk 0:00:11]}  Kg7 {[%clk 0:00:08]} 42. Rf5 {[%clk 0:00:09]}  b6 {[%clk 0:00:06]} 43. Kf3 {[%clk 0:00:09]}  a6 {[%clk 0:00:05]} 44. Ke4 {[%clk 0:00:09]}  h5 {[%clk 0:00:03]} 45. Kd5 {[%clk 0:00:08]}  Nh6 {[%clk 0:00:02]} 46. Rg5+ {[%clk 0:00:06]}  Kf8 {[%clk 0:00:02]} 47. Rxh6 {[%clk 0:00:05]}  Rg7 {[%clk 0:00:01]} 48. Rxg7 {[%clk 0:00:05]}  Kxg7 {[%clk 0:00:01]} 49. Rxh5 {[%clk 0:00:06]}  Kf7 {[%clk 0:00:01]} 50. Re5 {[%clk 0:00:06]}  Kf6 {[%clk 0:00:01]} 51. d7 {[%clk 0:00:06]}  Kg6 {[%clk 0:00:01]} 52. d8=Q {[%clk 0:00:07]}  Kf7 {[%clk 0:00:00]} 53. Qe7+ {[%clk 0:00:07]} 1-0


[Site "https://www.chess.com"]

[Event "Titled Tuesday Blitz August 22 Late 2023"]
[White "Veiga, Jose Francisco R P Neves"]
[Black "Blackburn, Jonathan L B"]
[WhiteFideId "1930087"]
[BlackFideId "1801090"]
[WhiteElo "2593"]
[BlackElo "2455"]
[Result "1-0"]
[Round "5"]
[TimeControl "180+1"]
[Date "2023.08.22"]
[WhiteClock "0:00:28"]
[BlackClock "0:00:00"]
[Board "93"]

1. d4 {[%clk 0:02:48]}  Nf6 {[%clk 0:02:59]} 2. Nf3 {[%clk 0:02:48]}  g6 {[%clk 0:02:59]} 3. Bg5 {[%clk 0:02:48]}  Bg7 {[%clk 0:02:59]} 4. Nbd2 {[%clk 0:02:48]}  d5 {[%clk 0:02:59]} 5. e3 {[%clk 0:02:48]}  O-O {[%clk 0:02:57]} 6. Be2 {[%clk 0:02:48]}  c5 {[%clk 0:02:56]} 7. c3 {[%clk 0:02:48]}  Nc6 {[%clk 0:02:56]} 8. O-O {[%clk 0:02:48]}  Qb6 {[%clk 0:02:50]} 9. Qb3 {[%clk 0:02:45]}  c4 {[%clk 0:02:47]} 10. Qxb6 {[%clk 0:02:45]}  axb6 {[%clk 0:02:48]} 11. h3 {[%clk 0:02:44]}  b5 {[%clk 0:02:47]} 12. a3 {[%clk 0:02:44]}  Nd7 {[%clk 0:02:37]} 13. e4 {[%clk 0:02:41]}  Nb6 {[%clk 0:02:23]} 14. exd5 {[%clk 0:02:39]}  Nxd5 {[%clk 0:02:24]} 15. Rfe1 {[%clk 0:02:24]}  h6 {[%clk 0:02:15]} 16. Bh4 {[%clk 0:02:24]}  f5 {[%clk 0:02:07]} 17. Bd1 {[%clk 0:01:59]}  f4 {[%clk 0:02:00]} 18. Bc2 {[%clk 0:01:53]}  Bf5 {[%clk 0:01:50]} 19. Be4 {[%clk 0:01:50]}  Bxe4 {[%clk 0:01:36]} 20. Rxe4 {[%clk 0:01:51]}  g5 {[%clk 0:01:36]} 21. Bxg5 {[%clk 0:01:50]}  hxg5 {[%clk 0:01:37]} 22. Nxg5 {[%clk 0:01:51]}  Rf5 {[%clk 0:01:25]} 23. Ne6 {[%clk 0:01:50]}  Nf6 {[%clk 0:01:13]} 24. Re2 {[%clk 0:01:43]}  Kf7 {[%clk 0:01:07]} 25. Rae1 {[%clk 0:01:40]}  Bh6 {[%clk 0:01:03]} 26. Nf3 {[%clk 0:01:35]}  Rg8 {[%clk 0:00:58]} 27. Nc5 {[%clk 0:01:11]}  b6 {[%clk 0:00:48]} 28. Ne6 {[%clk 0:01:11]}  Rh5 {[%clk 0:00:36]} 29. Kf1 {[%clk 0:01:06]}  Nd5 {[%clk 0:00:34]} 30. Re4 {[%clk 0:00:56]}  Nf6 {[%clk 0:00:27]} 31. R4e2 {[%clk 0:00:50]}  Nd5 {[%clk 0:00:28]} 32. Re4 {[%clk 0:00:50]}  Nd8 {[%clk 0:00:25]} 33. Nc7 {[%clk 0:00:47]}  e6 {[%clk 0:00:17]} 34. Nxb5 {[%clk 0:00:47]}  Rf5 {[%clk 0:00:14]} 35. Nd6+ {[%clk 0:00:46]}  Kf6 {[%clk 0:00:13]} 36. Nxf5 {[%clk 0:00:44]}  exf5 {[%clk 0:00:13]} 37. Re5 {[%clk 0:00:41]}  Nc7 {[%clk 0:00:10]} 38. d5 {[%clk 0:00:38]}  Nf7 {[%clk 0:00:08]} 39. Re7 {[%clk 0:00:35]}  Nxd5 {[%clk 0:00:07]} 40. R1e6+ {[%clk 0:00:36]}  Kg7 {[%clk 0:00:07]} 41. Rd7 {[%clk 0:00:31]}  Rd8 {[%clk 0:00:04]} 42. Rxd8 {[%clk 0:00:27]}  Nxd8 {[%clk 0:00:05]} 43. Rd6 {[%clk 0:00:27]}  Nf7 {[%clk 0:00:02]} 44. Rxd5 {[%clk 0:00:28]}  Ng5 {[%clk 0:00:02]} 45. Nxg5 {[%clk 0:00:27]}  Bxg5 {[%clk 0:00:02]} 46. Rxf5 {[%clk 0:00:28]}  Be7 {[%clk 0:00:00]} 47. Rxf4 {[%clk 0:00:28]} 1-0


[Site "https://www.chess.com"]

[Event "Titled Tuesday Blitz August 22 Late 2023"]
[White "Chor, Kevin"]
[Black "Sernecki, Franciszek"]
[WhiteFideId "2090740"]
[BlackFideId "1169297"]
[WhiteElo "2573"]
[BlackElo "2443"]
[Result "1-0"]
[Round "5"]
[TimeControl "180+1"]
[Date "2023.08.22"]
[WhiteClock "0:00:48"]
[BlackClock "0:00:00"]
[Board "98"]

1. e4 {[%clk 0:03:00]}  c5 {[%clk 0:01:44]} 2. Nf3 {[%clk 0:03:00]}  Nc6 {[%clk 0:01:45]} 3. d4 {[%clk 0:03:00]}  cxd4 {[%clk 0:01:45]} 4. Nxd4 {[%clk 0:03:01]}  Nf6 {[%clk 0:01:45]} 5. Nc3 {[%clk 0:03:01]}  e5 {[%clk 0:01:45]} 6. Ndb5 {[%clk 0:03:01]}  d6 {[%clk 0:01:46]} 7. Bg5 {[%clk 0:03:00]}  Be7 {[%clk 0:01:46]} 8. Bxf6 {[%clk 0:02:50]}  gxf6 {[%clk 0:01:44]} 9. Nd5 {[%clk 0:02:44]}  Qa5+ {[%clk 0:01:36]} 10. c3 {[%clk 0:02:26]}  O-O {[%clk 0:01:22]} 11. Nxe7+ {[%clk 0:02:20]}  Nxe7 {[%clk 0:01:22]} 12. Qxd6 {[%clk 0:02:21]}  Ng6 {[%clk 0:00:55]} 13. Qxf6 {[%clk 0:02:11]}  Be6 {[%clk 0:00:55]} 14. h4 {[%clk 0:02:05]}  a6 {[%clk 0:00:53]} 15. h5 {[%clk 0:01:59]}  Qd8 {[%clk 0:00:45]} 16. Qxd8 {[%clk 0:01:52]}  Raxd8 {[%clk 0:00:44]} 17. hxg6 {[%clk 0:01:53]}  axb5 {[%clk 0:00:43]} 18. gxh7+ {[%clk 0:01:53]}  Kh8 {[%clk 0:00:44]} 19. Bxb5 {[%clk 0:01:53]}  f5 {[%clk 0:00:36]} 20. exf5 {[%clk 0:01:42]}  Bxf5 {[%clk 0:00:37]} 21. Ke2 {[%clk 0:01:37]}  e4 {[%clk 0:00:26]} 22. Ke3 {[%clk 0:01:20]}  Bxh7 {[%clk 0:00:25]} 23. Rad1 {[%clk 0:01:18]}  Kg7 {[%clk 0:00:19]} 24. Rxd8 {[%clk 0:01:09]}  Rxd8 {[%clk 0:00:20]} 25. Be2 {[%clk 0:01:08]}  Bg6 {[%clk 0:00:19]} 26. Rd1 {[%clk 0:01:07]}  Ra8 {[%clk 0:00:18]} 27. a3 {[%clk 0:01:05]}  b6 {[%clk 0:00:16]} 28. Rd7+ {[%clk 0:01:02]}  Kh6 {[%clk 0:00:09]} 29. Rb7 {[%clk 0:00:56]}  Rf8 {[%clk 0:00:04]} 30. Rxb6 {[%clk 0:00:54]}  Kg5 {[%clk 0:00:04]} 31. a4 {[%clk 0:00:50]}  Ra8 {[%clk 0:00:00]} 32. a5 {[%clk 0:00:48]} 1-0


[Site "https://www.chess.com"]

[Event "Titled Tuesday Blitz August 22 Late 2023"]
[White "Haszon, David"]
[Black "Siniauski, Artsiom"]
[WhiteFideId "733610"]
[BlackFideId "13512269"]
[WhiteElo "2440"]
[BlackElo "2565"]
[Result "1-0"]
[Round "5"]
[TimeControl "180+1"]
[Date "2023.08.22"]
[WhiteClock "0:01:29"]
[BlackClock "0:00:15"]
[Board "100"]

1. d4 {[%clk 0:03:00]}  Nf6 {[%clk 0:02:54]} 2. Bf4 {[%clk 0:02:59]}  b6 {[%clk 0:02:53]} 3. Nf3 {[%clk 0:02:57]}  Bb7 {[%clk 0:02:53]} 4. e3 {[%clk 0:02:55]}  g6 {[%clk 0:02:51]} 5. Nc3 {[%clk 0:02:54]}  Bg7 {[%clk 0:02:51]} 6. h4 {[%clk 0:02:53]}  d6 {[%clk 0:02:51]} 7. Qd2 {[%clk 0:02:47]}  Nbd7 {[%clk 0:02:49]} 8. O-O-O {[%clk 0:02:43]}  Ne4 {[%clk 0:02:37]} 9. Nxe4 {[%clk 0:02:37]}  Bxe4 {[%clk 0:02:38]} 10. Bd3 {[%clk 0:02:37]}  Bxd3 {[%clk 0:02:36]} 11. Qxd3 {[%clk 0:02:38]}  e5 {[%clk 0:02:31]} 12. dxe5 {[%clk 0:02:36]}  dxe5 {[%clk 0:02:32]} 13. Qe4 {[%clk 0:02:24]}  f5 {[%clk 0:02:02]} 14. Qc6 {[%clk 0:02:06]}  exf4 {[%clk 0:02:01]} 15. Rxd7 {[%clk 0:02:05]}  Qxd7 {[%clk 0:02:02]} 16. Qxa8+ {[%clk 0:02:04]}  Ke7 {[%clk 0:01:54]} 17. Qxa7 {[%clk 0:01:55]}  fxe3 {[%clk 0:01:32]} 18. Qa3+ {[%clk 0:01:55]}  c5 {[%clk 0:00:46]} 19. Qxe3+ {[%clk 0:01:48]}  Qe6 {[%clk 0:00:46]} 20. Qf4 {[%clk 0:01:40]}  Qxa2 {[%clk 0:00:19]} 21. Qc7+ {[%clk 0:01:34]}  Kf8 {[%clk 0:00:15]} 22. Qd8+ {[%clk 0:01:29]}  Kf7 {[%clk 0:00:15]} 23. Ng5# {[%clk 0:01:29]} 1-0


[Site "https://www.chess.com"]

[Event "Titled Tuesday Blitz August 22 Late 2023"]
[White "Willy, Stephen"]
[Black "Bochnicka, Vladimir"]
[WhiteFideId "30981468"]
[BlackFideId "14943450"]
[WhiteElo "2564"]
[BlackElo "2436"]
[Result "1-0"]
[Round "5"]
[TimeControl "180+1"]
[Date "2023.08.22"]
[WhiteClock "0:00:07"]
[BlackClock "0:00:03"]
[Board "101"]

1. e4 {[%clk 0:03:00]}  e5 {[%clk 0:03:00]} 2. Nc3 {[%clk 0:02:55]}  Nf6 {[%clk 0:02:57]} 3. Nf3 {[%clk 0:02:50]}  Nc6 {[%clk 0:02:52]} 4. h3 {[%clk 0:02:48]}  Bb4 {[%clk 0:02:48]} 5. Nd5 {[%clk 0:02:45]}  d6 {[%clk 0:02:41]} 6. Nxb4 {[%clk 0:02:42]}  Nxb4 {[%clk 0:02:39]} 7. c3 {[%clk 0:02:37]}  Nc6 {[%clk 0:02:39]} 8. d4 {[%clk 0:02:28]}  O-O {[%clk 0:02:35]} 9. Bd3 {[%clk 0:02:19]}  Re8 {[%clk 0:02:25]} 10. O-O {[%clk 0:02:14]}  exd4 {[%clk 0:02:21]} 11. cxd4 {[%clk 0:02:04]}  Nxe4 {[%clk 0:02:05]} 12. d5 {[%clk 0:01:45]}  Nb4 {[%clk 0:01:27]} 13. Bb1 {[%clk 0:01:44]}  Bf5 {[%clk 0:01:18]} 14. Re1 {[%clk 0:01:38]}  Bg6 {[%clk 0:01:16]} 15. Qd4 {[%clk 0:01:30]}  c5 {[%clk 0:01:16]} 16. dxc6 {[%clk 0:01:25]}  Nxc6 {[%clk 0:01:16]} 17. Qd1 {[%clk 0:01:20]}  d5 {[%clk 0:01:05]} 18. Be3 {[%clk 0:01:17]}  Rc8 {[%clk 0:00:59]} 19. Bc2 {[%clk 0:01:16]}  Nb4 {[%clk 0:00:52]} 20. Bb3 {[%clk 0:01:15]}  Nf6 {[%clk 0:00:39]} 21. Nd4 {[%clk 0:01:02]}  Nd3 {[%clk 0:00:35]} 22. Re2 {[%clk 0:00:58]}  Nc5 {[%clk 0:00:29]} 23. Bc2 {[%clk 0:00:50]}  Bxc2 {[%clk 0:00:29]} 24. Rxc2 {[%clk 0:00:51]}  Qd7 {[%clk 0:00:25]} 25. Rac1 {[%clk 0:00:45]}  Nce4 {[%clk 0:00:23]} 26. Qf3 {[%clk 0:00:43]}  Nd6 {[%clk 0:00:17]} 27. Rd1 {[%clk 0:00:33]}  h6 {[%clk 0:00:17]} 28. Bxh6 {[%clk 0:00:31]}  Rxc2 {[%clk 0:00:14]} 29. Nxc2 {[%clk 0:00:30]}  Qa4 {[%clk 0:00:10]} 30. Rc1 {[%clk 0:00:20]}  Qe4 {[%clk 0:00:07]} 31. Qxe4 {[%clk 0:00:14]}  Nfxe4 {[%clk 0:00:08]} 32. Be3 {[%clk 0:00:14]}  Nc4 {[%clk 0:00:08]} 33. Bd4 {[%clk 0:00:14]}  a6 {[%clk 0:00:07]} 34. b3 {[%clk 0:00:14]}  Ncd6 {[%clk 0:00:06]} 35. Ne3 {[%clk 0:00:14]}  Nb5 {[%clk 0:00:06]} 36. Bb2 {[%clk 0:00:14]}  d4 {[%clk 0:00:04]} 37. Nc4 {[%clk 0:00:13]}  d3 {[%clk 0:00:05]} 38. Rd1 {[%clk 0:00:14]}  Rd8 {[%clk 0:00:04]} 39. f3 {[%clk 0:00:14]}  Nec3 {[%clk 0:00:04]} 40. Rd2 {[%clk 0:00:11]}  Nb1 {[%clk 0:00:03]} 41. Rd1 {[%clk 0:00:11]}  N5c3 {[%clk 0:00:04]} 42. Bxc3 {[%clk 0:00:07]}  Nxc3 {[%clk 0:00:05]} 43. Rd2 {[%clk 0:00:07]}  Nb1 {[%clk 0:00:03]} 44. Rb2 {[%clk 0:00:07]}  d2 {[%clk 0:00:03]} 45. Nxd2 {[%clk 0:00:04]}  Nxd2 {[%clk 0:00:03]} 46. Kf2 {[%clk 0:00:04]}  b5 {[%clk 0:00:02]} 47. Ke2 {[%clk 0:00:05]}  Nxf3 {[%clk 0:00:02]} 48. gxf3 {[%clk 0:00:05]}  f6 {[%clk 0:00:02]} 49. Rd2 {[%clk 0:00:05]}  Kh7 {[%clk 0:00:03]} 50. Rxd8 {[%clk 0:00:05]}  Kg6 {[%clk 0:00:02]} 51. Rd6 {[%clk 0:00:05]}  a5 {[%clk 0:00:02]} 52. Rd5 {[%clk 0:00:06]}  a4 {[%clk 0:00:03]} 53. Rxb5 {[%clk 0:00:06]}  axb3 {[%clk 0:00:04]} 54. axb3 {[%clk 0:00:06]}  Kf7 {[%clk 0:00:03]} 55. Rc5 {[%clk 0:00:07]} 1-0


[Site "https://www.chess.com"]

[Event "Titled Tuesday Blitz August 22 Late 2023"]
[White "Souleidis, Georgios"]
[Black "Silva Lucena, Cristian"]
[WhiteFideId "4206827"]
[BlackFideId "2232588"]
[WhiteElo "2562"]
[BlackElo "2432"]
[Result "1-0"]
[Round "5"]
[TimeControl "180+1"]
[Date "2023.08.22"]
[WhiteClock "0:01:01"]
[BlackClock "0:01:09"]
[Board "102"]

1. e4 {[%clk 0:03:00]}  e5 {[%clk 0:02:57]} 2. Nc3 {[%clk 0:02:56]}  Nf6 {[%clk 0:02:56]} 3. d4 {[%clk 0:02:56]}  exd4 {[%clk 0:02:52]} 4. Qxd4 {[%clk 0:02:57]}  Nc6 {[%clk 0:02:51]} 5. Qd3 {[%clk 0:02:57]}  Bb4 {[%clk 0:02:47]} 6. Bd2 {[%clk 0:02:56]}  O-O {[%clk 0:02:46]} 7. O-O-O {[%clk 0:02:55]}  Re8 {[%clk 0:02:32]} 8. Nge2 {[%clk 0:02:54]}  Ne5 {[%clk 0:02:26]} 9. Qg3 {[%clk 0:02:54]}  Nc4 {[%clk 0:02:26]} 10. Bg5 {[%clk 0:02:40]}  Bf8 {[%clk 0:02:22]} 11. Nd5 {[%clk 0:02:17]}  Kh8 {[%clk 0:02:19]} 12. Bxf6 {[%clk 0:02:13]}  gxf6 {[%clk 0:02:18]} 13. Nec3 {[%clk 0:02:04]}  Bd6 {[%clk 0:01:55]} 14. Qh4 {[%clk 0:01:59]}  Ne5 {[%clk 0:01:53]} 15. Nxf6 {[%clk 0:01:34]}  Kg7 {[%clk 0:01:34]} 16. Nxe8+ {[%clk 0:01:25]}  Qxe8 {[%clk 0:01:32]} 17. Nd5 {[%clk 0:01:24]}  Ng6 {[%clk 0:01:28]} 18. Qf6+ {[%clk 0:01:24]}  Kg8 {[%clk 0:01:27]} 19. Qxd6 {[%clk 0:01:10]}  cxd6 {[%clk 0:01:21]} 20. Nf6+ {[%clk 0:01:10]}  Kf8 {[%clk 0:01:22]} 21. Nxe8 {[%clk 0:01:11]}  Kxe8 {[%clk 0:01:22]} 22. Rxd6 {[%clk 0:01:10]}  Ke7 {[%clk 0:01:22]} 23. Rd1 {[%clk 0:01:09]}  d6 {[%clk 0:01:21]} 24. Bc4 {[%clk 0:01:03]}  a6 {[%clk 0:01:20]} 25. Rhe1 {[%clk 0:01:00]}  b5 {[%clk 0:01:20]} 26. Bd5 {[%clk 0:01:00]}  Rb8 {[%clk 0:01:09]} 27. g3 {[%clk 0:01:01]} 1-0


[Site "https://www.chess.com"]